fUSD/lending_fUSD_20250213
["ID","MTS","AMOUNT","RATE_DAILY","PERIOD"]
[352927805,1739437845639,-1548.0,0.00015332,2]
[352927806,1739437845649,-2625.63,0.00015332,2]
[352927807,1739437845660,-1579.79,0.00015332,2]
[352927808,1739437845671,-1781.02,0.00015332,2]
[352927809,1739437845680,-500.0,0.00015332,2]
[352927810,1739437845691,-1761.05,0.00015332,2]
[352927811,1739437845703,-1208.19,0.00015332,2]
[352927812,1739437845716,-1149.54,0.00015332,2]
[352927813,1739437845733,-1592.5,0.00015332,2]
[352927814,1739437845742,-1278.38,0.00015332,2]
[352927815,1739437845752,-996.85,0.00015332,2]
[352927816,1739437845766,-1309.18,0.00015332,2]
[352927817,1739437845776,-1539.09,0.00015332,2]
[352927818,1739437845787,-2298.09,0.00015332,2]
[352927819,1739437845796,-1151.57,0.00015332,2]
[352927820,1739437845806,-1142.58,0.00015332,2]
[352927821,1739437845816,-1203.87,0.00015332,2]
[352927822,1739437845826,-1111.65,0.00015332,2]
[352927823,1739437845836,-1975.71,0.00015332,2]
[352927824,1739437845847,-1603.46,0.00015332,2]
[352927825,1739437845856,-1487.5,0.00015332,2]
[352927826,1739437845866,-1168.32,0.00015332,2]
[352927827,1739437845877,-753.05,0.00015332,2]
[352927828,1739437845887,-500.0,0.00015332,2]
[352927829,1739437845896,-2267.14,0.00015332,2]
[352927830,1739437845905,-1312.13,0.00015332,2]
[352927831,1739437845915,-500.0,0.00015332,2]
[352927832,1739437845925,-500.0,0.00015332,2]
[352927833,1739437845935,-1756.91,0.00015332,2]
[352927834,1739437845947,-1251.32,0.00015332,2]
[352927835,1739437845956,-7067.02,0.00015332,2]
[352927836,1739437845966,-500.0,0.00015332,2]
[352927837,1739437845977,-1999.35,0.00015332,2]
[352927838,1739437845986,-899.96,0.00015332,2]
[352927839,1739437845997,-1528.63,0.00015332,2]
[352927840,1739437846008,-2986.3,0.00015332,2]
[352927841,1739437846019,-589.34,0.00015332,2]
[352927842,1739437846028,-1762.41,0.00015332,2]
[352927843,1739437846038,-1424.29,0.00015332,2]
[352927844,1739437846047,-693.38,0.00015332,2]
[352927845,1739437846056,-1513.88,0.00015332,2]
[352927846,1739437846066,-3364.11,0.00015332,2]
[352927847,1739437846080,-500.0,0.00015332,2]
[352927848,1739437846090,-1238.66,0.00015332,2]
[352927849,1739437846101,-2920.33,0.00015332,2]
[352927850,1739437846111,-810.5,0.00015332,2]
[352927851,1739437846121,-842.61,0.00015332,2]
[352927852,1739437846130,-3230.36,0.00015332,2]
[352927853,1739437846139,-500.0,0.00015332,2]
[352927854,1739437846149,-2898.99,0.00015332,2]
[352927855,1739437846158,-2333.68,0.00015332,2]
[352927856,1739437846168,-3171.47,0.00015332,2]
[352927857,1739437846177,-1145.54,0.00015332,2]
[352927858,1739437846187,-4905.78,0.00015332,2]
[352927859,1739437846196,-1117.89,0.00015332,2]
[352927860,1739437846205,-12188.7,0.00015332,2]
[352927861,1739437846215,-1097.07,0.00015332,2]
[352927862,1739437846224,-2687.24,0.00015332,2]
[352927863,1739437846234,-1419.88,0.00015332,2]
[352927864,1739437846243,-983.56,0.00015332,2]
[352927865,1739437846253,-2723.23,0.00015332,2]
[352927866,1739437846263,-1557.63,0.00015332,2]
[352927867,1739437846272,-2244.69,0.00015332,2]
[352927868,1739437846281,-1669.71,0.00015332,2]
[352927869,1739437846291,-3645.41,0.00015332,2]
[352927870,1739437846301,-965.37,0.00015332,2]
[352927871,1739437846310,-2208.84,0.00015332,2]
[352927872,1739437846319,-1940.88,0.00015332,2]
[352927873,1739437846329,-500.0,0.00015332,2]
[352927874,1739437846338,-500.0,0.00015332,2]
[352927875,1739437846347,-3467.23,0.00015332,2]
[352927876,1739437846357,-619.66,0.00015332,2]
[352927877,1739437846366,-4335.69,0.00015332,2]
[352927878,1739437846375,-1286.62,0.00015332,2]
[352927879,1739437846386,-2780.08,0.00015332,2]
[352927880,1739437846396,-1253.03,0.00015332,2]
[352927881,1739437846405,-3405.61,0.00015332,2]
[352927882,1739437846415,-500.0,0.00015332,2]
[352927883,1739437846424,-721.75,0.00015332,2]
[352927884,1739437846433,-505.38481892,0.00015333,2]
[352927885,1739437846442,-500.0,0.00015333,2]
[352927886,1739437846623,-500.0,0.00015333,2]
[352927887,1739437846633,-296.58413976,0.00015333,2]
[352927888,1739437846643,-1347.23,0.00015333,2]
[352927889,1739437846653,-500.0,0.00015333,2]
[352927890,1739437846662,-1016.18,0.00015333,2]
[352927891,1739437846672,-505.97249509,0.00015333,2]
[352927892,1739437846682,-500.0,0.00015333,2]
[352927893,1739437846692,-1342.52,0.00015333,2]
[352927894,1739437846701,-500.0,0.00015333,2]
[352927895,1739437846712,-572.12,0.00015333,2]
[352927896,1739437846723,-500.0,0.00015333,2]
[352927897,1739437846733,-489.70382653,0.00015333,2]
[352927898,1739437846742,-500.0,0.00015333,2]
[352927899,1739437846753,-500.0,0.00015333,2]
[352927900,1739437846762,-501.66410514,0.00015333,2]
[352927901,1739437846773,-566.6,0.00015333,2]
[352927902,1739437846783,-500.0,0.00015333,2]
[352927903,1739437846793,-885.27,0.00015333,2]
[352927904,1739437846804,-948.32,0.00015333,2]
[352927905,1739437846813,-504.86061358,0.00015333,2]
[352927906,1739437846824,-500.0,0.00015333,2]
[352927907,1739437846833,-239.43062522,0.00015333,2]
[352927908,1739437846843,-500.0,0.00015333,2]
[352927909,1739437846853,-537.46,0.00015333,2]
[352927910,1739437846863,-747.33,0.00015333,2]
[352927911,1739437846873,-500.0,0.00015333,2]
[352927912,1739437846884,-1568.12,0.00015333,2]
[352927913,1739437846895,-500.0,0.00015333,2]
[352927914,1739437846904,-836.35,0.00015333,2]
[352927915,1739437846914,-1090.74,0.00015333,2]
[352927916,1739437846924,-564.7,0.00015333,2]
[352927917,1739437846934,-2534.77,0.00015333,2]
[352927918,1739437846944,-563.26,0.00015333,2]
[352927919,1739437846954,-801.85,0.00015333,2]
[352927920,1739437846964,-500.0,0.00015333,2]
[352927921,1739437846975,-506.99246863,0.00015333,2]
[352927922,1739437846986,-500.0,0.00015333,2]
[352927923,1739437846996,-500.0,0.00015333,2]
[352927924,1739437847011,-509.06555447,0.00015333,2]
[352927925,1739437847022,-500.0,0.00015333,2]
[352927926,1739437847033,-1316.8,0.00015333,2]
[352927927,1739437847044,-611.5,0.00015333,2]
[352927928,1739437847054,-500.0,0.00015333,2]
[352927929,1739437847065,-500.0,0.00015333,2]
[352927930,1739437847078,-500.0,0.00015333,2]
[352927931,1739437847087,-251.06707228,0.00015333,2]
[352927932,1739437847096,-500.0,0.00015333,2]
[352927933,1739437847107,-500.0,0.00015333,2]
[352927934,1739437847117,-937.04,0.00015333,2]
[352927935,1739437847126,-641.08,0.00015333,2]
[352927936,1739437847137,-500.0,0.00015333,2]
[352927937,1739437847148,-500.0,0.00015333,2]
[352927938,1739437847158,-500.0,0.00015333,2]
[352927939,1739437847169,-657.4,0.00015333,2]
[352927940,1739437847179,-557.53,0.00015333,2]
[352927941,1739437847190,-500.0,0.00015333,2]
[352927942,1739437847200,-500.0,0.00015333,2]
[352927943,1739437847211,-500.0,0.00015333,2]
[352927944,1739437847220,-500.0,0.00015333,2]
[352927945,1739437847231,-500.0,0.00015333,2]
[352927946,1739437847241,-500.0,0.00015333,2]
[352927947,1739437847252,-500.0,0.00015333,2]
[352927948,1739437847262,-689.94,0.00015333,2]
[352927949,1739437847273,-615.96,0.00015333,2]
[352927950,1739437847283,-500.0,0.00015333,2]
[352927951,1739437847294,-500.0,0.00015333,2]
[352927952,1739437847304,-567.85,0.00015333,2]
[352927953,1739437847314,-500.0,0.00015333,2]
[352927954,1739437847324,-500.0,0.00015333,2]
[352927955,1739437847336,-813.92,0.00015333,2]
[352927956,1739437847346,-500.0,0.00015333,2]
[352927957,1739437847356,-500.0,0.00015333,2]
[352927958,1739437847366,-969.16,0.00015333,2]
[352927959,1739437847376,-500.0,0.00015333,2]
[352927960,1739437847385,-241.39710075,0.00015333,2]
[352927961,1739437847395,-1033.55,0.00015333,2]
[352927962,1739437847408,-500.0,0.00015333,2]
[352927963,1739437847417,-500.0,0.00015333,2]
[352927964,1739437847427,-500.0,0.00015333,2]
[352927965,1739437847437,-500.0,0.00015333,2]
[352927966,1739437847446,-1370.48,0.00015333,2]
[352927967,1739437847455,-500.0,0.00015333,2]
[352927968,1739437847465,-1094.79,0.00015333,2]
[352927969,1739437847476,-500.0,0.00015333,2]
[352927970,1739437847486,-507.47859958,0.00015333,2]
[352927971,1739437847496,-603.31,0.00015333,2]
[352927972,1739437847505,-500.0,0.00015333,2]
[352927973,1739437847515,-500.0,0.00015333,2]
[352927974,1739437847524,-918.61,0.00015333,2]
[352927975,1739437847534,-500.0,0.00015333,2]
[352927976,1739437847546,-424.52987012,0.00015333,2]
[352927977,1739437847560,-500.0,0.00015333,2]
[352927978,1739437847570,-579.87,0.00015333,2]
[352927979,1739437847580,-820.87,0.00015333,2]
[352927980,1739437847590,-500.0,0.00015333,2]
[352927981,1739437847599,-500.0,0.00015333,2]
[352927982,1739437847608,-500.0,0.00015333,2]
[352927983,1739437847619,-500.0,0.00015333,2]
[352927984,1739437847628,-1571.04,0.00015333,2]
[352927985,1739437847638,-782.76,0.00015333,2]
[352927986,1739437847648,-500.0,0.00015333,2]
[352927987,1739437847657,-500.0,0.00015333,2]
[352927988,1739437847666,-725.79,0.00015333,2]
[352927989,1739437847677,-500.0,0.00015333,2]
[352927990,1739437847687,-933.16,0.00015333,2]
[352927991,1739437847696,-500.0,0.00015333,2]
[352927992,1739437847707,-500.0,0.00015333,2]
[352927993,1739437847716,-665.18,0.00015333,2]
[352927994,1739437847726,-756.7,0.00015333,2]
[352927995,1739437847735,-500.0,0.00015333,2]
[352927996,1739437847744,-680.39,0.00015333,2]
[352927997,1739437847754,-500.0,0.00015333,2]
[352927998,1739437847764,-1280.78,0.00015333,2]
[352927999,1739437847773,-982.45,0.00015333,2]
[352928000,1739437847788,-500.0,0.00015333,2]
[352928001,1739437847798,-500.0,0.00015333,2]
[352928002,1739437847807,-612.62,0.00015333,2]
[352928003,1739437847816,-233.84953308,0.00015333,2]
[352928004,1739437847826,-500.0,0.00015333,2]
[352928005,1739437847836,-500.0,0.00015333,2]
[352928006,1739437847846,-500.0,0.00015333,2]
[352928007,1739437847857,-500.0,0.00015333,2]
[352928008,1739437847867,-1163.75,0.00015333,2]
[352928009,1739437847877,-500.0,0.00015333,2]
[352928010,1739437847888,-945.92,0.00015333,2]
[352928011,1739437847898,-500.0,0.00015333,2]
[352928012,1739437847908,-500.0,0.00015333,2]
[352928013,1739437847919,-500.0,0.00015333,2]
[352928014,1739437847929,-500.0,0.00015333,2]
[352928015,1739437847939,-500.0,0.00015333,2]
[352928016,1739437847949,-500.0,0.00015333,2]
[352928017,1739437847959,-500.0,0.00015333,2]
[352928018,1739437847969,-500.0,0.00015333,2]
[352928019,1739437847979,-528.13662805,0.00015333,2]
[352928020,1739437847988,-582.47291842,0.00015333,2]
[352928021,1739437847998,-500.0,0.00015333,2]
[352928022,1739437848008,-968.85,0.00015333,2]
[352928023,1739437848018,-809.1,0.00015333,2]
[352928024,1739437848028,-500.0,0.00015333,2]
[352928025,1739437848038,-707.21,0.00015333,2]
[352928026,1739437848048,-516.68726602,0.00015333,2]
[352928027,1739437848058,-361.95770795,0.00015333,2]
[352928028,1739437848069,-500.0,0.00015333,2]
[352928029,1739437848082,-509.85967177,0.00015333,2]
[352928030,1739437848092,-500.0,0.00015333,2]
[352928031,1739437848103,-500.0,0.00015333,2]
[352928032,1739437848113,-500.0,0.00015333,2]
[352928033,1739437848124,-500.0,0.00015333,2]
[352928034,1739437848135,-500.0,0.00015333,2]
[352928035,1739437848145,-500.0,0.00015333,2]
[352928036,1739437848155,-500.0,0.00015333,2]
[352928037,1739437848165,-500.0,0.00015333,2]
[352928038,1739437848176,-500.0,0.00015333,2]
[352928039,1739437848185,-500.0,0.00015333,2]
[352928040,1739437848196,-500.0,0.00015333,2]
[352928041,1739437848205,-500.0,0.00015333,2]
[352928042,1739437848215,-500.0,0.00015333,2]
[352928043,1739437848225,-500.0,0.00015333,2]
[352928044,1739437848236,-500.0,0.00015333,2]
[352928045,1739437848246,-500.0,0.00015333,2]
[352928046,1739437848256,-502.44866204,0.00015333,2]
[352928047,1739437848267,-504.11367613,0.00015333,2]
[352928048,1739437848277,-834.38,0.00015333,2]
[352928049,1739437848287,-500.0,0.00015333,2]
[352928050,1739437848298,-500.0,0.00015333,2]
[352928051,1739437848308,-500.0,0.00015333,2]
[352928052,1739437848319,-500.0,0.00015333,2]
[352928053,1739437848329,-512.34,0.00015333,2]
[352928054,1739437848339,-544.97,0.00015333,2]
[352928055,1739437848350,-500.0,0.00015333,2]
[352928056,1739437848360,-500.0,0.00015333,2]
[352928057,1739437848370,-500.0,0.00015333,2]
[352928058,1739437848380,-636.72,0.00015333,2]
[352928059,1739437848391,-557.93257609,0.00015333,2]
[352928060,1739437848401,-500.0,0.00015333,2]
[352928061,1739437848412,-500.0,0.00015333,2]
[352928062,1739437848422,-500.0,0.00015333,2]
[352928063,1739437848432,-757.3,0.00015333,2]
[352928064,1739437848442,-507.1675863,0.00015334,2]
[352928065,1739437848452,-472.07611542,0.00015334,2]
[352928066,1739437848462,-1277.69,0.00015334,2]
[352928067,1739437848472,-2255.9,0.00015334,2]
[352928068,1739437848483,-1984.95,0.00015334,2]
[352928069,1739437848495,-510.14,0.00015334,2]
[352928070,1739437848506,-2400.9,0.00015334,2]
[352928071,1739437848515,-2468.47,0.00015334,2]
[352928072,1739437848525,-500.0,0.00015334,2]
[352928073,1739437848536,-500.0,0.00015334,2]
[352928074,1739437848546,-1356.59,0.00015334,2]
[352928075,1739437848556,-1201.29,0.00015334,2]
[352928076,1739437848566,-500.0,0.00015334,2]
[352928077,1739437848576,-410.69322661,0.00015334,2]
[352928078,1739437848586,-500.0,0.00015334,2]
[352928079,1739437848596,-1278.79,0.00015334,2]
[352928080,1739437848606,-500.0,0.00015334,2]
[352928081,1739437848617,-1195.12,0.00015334,2]
[352928082,1739437848626,-1098.31,0.00015334,2]
[352928083,1739437848636,-500.0,0.00015334,2]
[352928084,1739437848646,-2517.1,0.00015334,2]
[352928085,1739437848656,-1560.63,0.00015334,2]
[352928086,1739437848667,-1186.26,0.00015334,2]
[352928087,1739437848676,-1388.54,0.00015334,2]
[352928088,1739437848686,-500.0,0.00015334,2]
[352928089,1739437848696,-1214.79,0.00015334,2]
[352928090,1739437848706,-1474.12,0.00015334,2]
[352928091,1739437848716,-500.0,0.00015334,2]
[352928092,1739437848726,-2131.04,0.00015334,2]
[352928093,1739437848736,-1014.6,0.00015334,2]
[352928094,1739437848746,-996.62,0.00015334,2]
[352928095,1739437848755,-2273.76,0.00015334,2]
[352928096,1739437848766,-2083.76,0.00015334,2]
[352928097,1739437848775,-1535.05,0.00015334,2]
[352928098,1739437848785,-1224.88,0.00015334,2]
[352928099,1739437848794,-749.62,0.00015334,2]
[352928100,1739437848806,-2287.44,0.00015334,2]
[352928101,1739437848816,-1337.89,0.00015334,2]
[352928102,1739437848826,-2349.81,0.00015334,2]
[352928103,1739437848836,-500.0,0.00015334,2]
[352928104,1739437848846,-2305.06,0.00015334,2]
[352928105,1739437848857,-1172.42,0.00015334,2]
[352928106,1739437848866,-1332.56,0.00015334,2]
[352928107,1739437848877,-614.28,0.00015334,2]
[352928108,1739437848887,-500.0,0.00015334,2]
[352928109,1739437848897,-500.0,0.00015334,2]
[352928110,1739437848907,-547.67,0.00015334,2]
[352928111,1739437848917,-900.06,0.00015334,2]
[352928112,1739437848927,-1223.0,0.00015334,2]
[352928113,1739437848936,-500.0,0.00015334,2]
[352928114,1739437848946,-500.0,0.00015337,2]
[352928115,1739437848956,-500.0,0.00015337,2]
[352928116,1739437848965,-500.0,0.00015337,2]
[352928117,1739437848975,-508.13,0.00015337,2]
[352928118,1739437848986,-1065.03,0.00015337,2]
[352928119,1739437848995,-500.0,0.00015337,2]
[352928120,1739437849005,-500.0,0.00015337,2]
[352928121,1739437849015,-500.0,0.00015337,2]
[352928122,1739437849025,-500.0,0.00015337,2]
[352928123,1739437849035,-1042.01,0.00015337,2]
[352928124,1739437849046,-209.42234286,0.00015337,2]
[352928125,1739437849056,-748.25,0.00015337,2]
[352928126,1739437849069,-500.0,0.00015337,2]
[352928127,1739437849082,-1068.7,0.00015337,2]
[352928128,1739437849092,-500.0,0.00015337,2]
[352928129,1739437849103,-500.0,0.00015337,2]
[352928130,1739437849113,-542.84,0.00015337,2]
[352928131,1739437849123,-1126.26,0.00015337,2]
[352928132,1739437849134,-500.0,0.00015343,2]
[352928133,1739437849143,-500.0,0.00015343,2]
[352928134,1739437849154,-1348.64,0.00015344,2]
[352928135,1739437849164,-1301.35,0.00015344,2]
[352928136,1739437849174,-500.0,0.00015344,2]
[352928137,1739437849184,-500.0,0.00015344,2]
[352928138,1739437849195,-500.0,0.00015346,2]
[352928139,1739437849205,-500.0,0.00015368,2]
[352928140,1739437849215,-2639.0070128,0.00015369,2]
[352928141,1739437849225,-7937.5213549,0.00015369,2]
[352928142,1739437849235,-333.1658897,0.00015369,2]
[352928143,1739437849246,-200.00000001,0.0001537,2]
[352928144,1739437849256,-500.0,0.00015373,2]
[352928145,1739437849268,-500.0,0.00015379,2]
[352928146,1739437849279,-999.0,0.00015379,2]
[352928147,1739437849291,-500.0,0.00015379,2]
[352928148,1739437849302,-371.35844061,0.00015379,2]
[352928149,1739437849312,-1151.0,0.00015379,2]
[352928150,1739437849322,-40513.55082766,0.0001538,3]
[352928151,1739437849332,-2881112.66508394,0.0001538,2]
[352928152,1739437849341,-200.0,0.0001538,2]
[352928153,1739437849352,-200.0,0.0001538,2]
[352928154,1739437849363,-151.0,0.0001538,2]
[352928155,1739437849372,-200.0,0.0001538,2]
[352928156,1739437849382,-151.0,0.0001538,2]
[352928157,1739437849392,-151.0,0.0001538,2]
[352928158,1739437849401,-151.0,0.0001538,2]
[352928159,1739437849411,-200.0,0.0001538,2]
[352928160,1739437849421,-2249.7359872,0.00015389,2]
[352928161,1739437849430,-1860.4649616,0.00015389,2]
[352928162,1739437849440,-1471.193936,0.00015389,2]
[352928163,1739437849450,-6763.6526982,0.00015389,2]
[352928164,1739437849459,-5589.7840415,0.00015389,2]
[352928165,1739437849470,-4415.9153848,0.00015389,2]
[352928166,1739437849652,-333.1658897,0.00015389,2]
[352928167,1739437849662,-333.1658897,0.00015389,2]
[352928168,1739437849672,-333.1658897,0.00015389,2]
[352928169,1739437849681,-11897.20654187,0.00015399,2]
[352928170,1739437849690,-58992.01594144,0.00015399,2]
[352928171,1739437850123,-1129.84499985,0.00015399,2]
[352928172,1739437850134,-746.6074987,0.00015399,2]
[352928173,1739437850376,-320.30535686,0.00015399,2]
[352928174,1739437851009,-700.0,0.00013068,2]
[352928175,1739437851020,-2609.62,0.00015329,2]
[352928176,1739437851029,-69130.94830622,0.00015399,2]
[352928177,1739437851039,-262968.64958751,0.000154,5]
[352928178,1739437851055,-110761.87176076,0.000154,5]
[352928180,1739438287787,1971.973,8.256e-05,2]
[352928181,1739438305796,4899.5232,8.699e-05,2]
[352928182,1739438555622,279.82,0.00010137,2]
[352928183,1739438708587,330873.0646877,0.0001,2]
[352928184,1739438727151,7442.54137788,0.00020796,60]
[352928185,1739438737069,11929.94892043,8e-05,2]
[352928186,1739438759127,-690.11290181,0.00012243,2]
[352928190,1739438835093,-173.71709819,0.00012243,2]
[352928191,1739438835116,-150.0,0.00012622,2]
[352928192,1739438835139,-550.0,0.00013,2]
[352928193,1739438835160,-150.0,0.00013468,2]
[352928194,1739438835183,-150.0,0.00013468,2]
[352928195,1739438835206,-150.0,0.00013858,2]
[352928196,1739438835228,-386.52,0.00014032,2]
[352928197,1739438835251,-1000.0,0.00014049,2]
[352928198,1739438835272,-93.28508313,0.0001411,2]
[352928200,1739438842076,-108.77491687,0.0001411,2]
[352928201,1739438842098,-166.85,0.00014194,2]
[352928202,1739438842121,-1291.46,0.00014223,2]
[352928203,1739438842141,-300.0,0.00014306,2]
[352928204,1739438842162,-658.74,0.00014334,2]
[352928205,1739438842183,-700.0,0.00014438,2]
[352928206,1739438842204,-173.33,0.00014502,2]
[352928207,1739438842457,-863.83,0.00014507,2]
[352928208,1739438842484,-1000.0,0.0001452,3]
[352928209,1739438842505,-775.49,0.00014658,2]
[352928210,1739438842527,-439.94,0.00014658,2]
[352928211,1739438842549,-775.49,0.00014658,2]
[352928212,1739438842571,-439.94,0.00014658,2]
[352928213,1739438842593,-775.49,0.00014658,2]
[352928214,1739438842614,-439.94,0.00014658,2]
[352928215,1739438842635,-150.0,0.00014794,2]
[352928216,1739438842656,-300.0,0.00014795,2]
[352928217,1739438842678,-986.09,0.00014795,2]
[352928218,1739438842699,-151.2,0.00014795,2]
[352928219,1739438842721,-986.09,0.00014795,2]
[352928220,1739438842741,-105.45012482,0.00014795,2]
[352928221,1739438849318,-44.54987518,0.00014795,2]
[352928222,1739438849590,-304.05782425,0.00014795,2]
[352928223,1739438854095,-682.03217575,0.00014795,2]
[352928224,1739438854118,-633.60157,0.00014795,2]
[352928227,1739438948090,-600.0,0.00014164,2]
[352928228,1739438948110,-116.8014,0.00014479,2]
[352928229,1739438960093,-33.1986,0.00014479,2]
[352928230,1739438960115,-209.92843,0.00014795,2]
[352928231,1739438960136,-150.0,0.00014795,2]
[352928232,1739438960156,-50.81297,0.00014825,2]
[352928233,1739438965562,-99.18703,0.00014825,2]
[352928235,1739439019186,429.03297,0.00014164,2]
[352928239,1739439031921,-170.96703,0.00014164,2]
[352928240,1739439031931,-600.0,0.00015,2]
[352928241,1739439031940,-939.66919159,0.00015,2]
[352928242,1739439031950,-150.0,0.00015034,2]
[352928243,1739439031961,-150.0,0.00015068,2]
[352928244,1739439031972,-150.0,0.00015068,2]
[352928245,1739439031982,-163.64494097,0.00015099,2]
[352928246,1739439031991,-159.81199429,0.00015099,2]
[352928247,1739439032002,-178.34010896,0.00015102,2]
[352928248,1739439032012,-163.6449409,0.00015124,2]
[352928249,1739439032022,-150.0,0.00015128,2]
[352928250,1739439032032,-150.0,0.00015129,2]
[352928251,1739439032042,-150.0,0.00015132,2]
[352928252,1739439032052,-150.0,0.00015137,2]
[352928253,1739439032062,-150.0,0.00015138,2]
[352928254,1739439032071,-150.0,0.0001514,2]
[352928255,1739439032080,-150.0,0.00015145,2]
[352928256,1739439032092,-150.0,0.00015146,2]
[352928257,1739439032102,-150.0,0.00015148,2]
[352928258,1739439032111,-163.6449409,0.00015149,2]
[352928259,1739439032121,-150.0,0.0001515,2]
[352928260,1739439032131,-150.0,0.00015151,2]
[352928261,1739439032142,-421.7755603,0.00015162,2]
[352928262,1739439032151,-150.0,0.00015163,2]
[352928263,1739439032161,-159.81199429,0.00015166,2]
[352928264,1739439032171,-150.0,0.00015167,2]
[352928265,1739439032180,-150.0,0.00015167,2]
[352928266,1739439032190,-150.0,0.00015168,2]
[352928267,1739439032200,-500.0,0.00015173,2]
[352928268,1739439032209,-150.0,0.00015173,2]
[352928269,1739439032218,-150.0,0.00015173,2]
[352928270,1739439032228,-150.0,0.00015173,2]
[352928271,1739439032238,-163.6449409,0.00015174,2]
[352928272,1739439032247,-150.0,0.00015175,2]
[352928273,1739439032257,-150.0,0.00015177,2]
[352928275,1739439032266,-150.0,0.00015178,2]
[352928277,1739439032276,-150.0,0.00015181,2]
[352928279,1739439032285,-150.0,0.00015185,2]
[352928281,1739439032295,-150.0,0.00015185,2]
[352928282,1739439032304,-150.0,0.00015186,2]
[352928293,1739439032502,-138.1163569,0.00015189,2]
[352928294,1739439032544,-7738.05767481,0.00015189,2]
[352928295,1739439032567,-395.39999862,0.00015189,2]
[352928297,1739439037714,-7766.15755793,0.00015189,2]
[352928299,1739439037726,-82293.24101124,0.00015189,2]
[352928301,1739439037735,-150.0,0.0001519,2]
[352928303,1739439037744,-150.0,0.00015193,2]
[352928305,1739439037754,-150.0,0.00015196,2]
[352928307,1739439037764,-711.12,0.00015197,2]
[352928309,1739439037773,-672.04,0.00015197,2]
[352928311,1739439037783,-500.0,0.00015197,2]
[352928313,1739439037792,-1203.72502334,0.00015198,2]
[352928314,1739439037803,-2115.468,0.00015198,2]
[352928315,1739439037814,-174.132,0.00015198,2]
[352928316,1739439037824,-4511.72,0.00015198,2]
[352928317,1739439037834,-2525.21,0.00015198,2]
[352928318,1739439037845,-3512.46,0.00015198,2]
[352928319,1739439037855,-500.0,0.00015198,2]
[352928320,1739439037865,-916.24,0.00015198,2]
[352928321,1739439037874,-2144.637017,0.00015198,2]
[352928322,1739439037884,-2920.96,0.00015198,2]
[352928323,1739439037893,-160.450785,0.00015198,2]
[352928324,1739439037903,-2089.86,0.00015198,2]
[352928325,1739439037912,-2084.03,0.00015198,2]
[352928326,1739439037922,-1735.4,0.00015198,2]
[352928327,1739439037931,-2891.8,0.00015198,2]
[352928328,1739439037941,-3136.39,0.00015198,2]
[352928329,1739439037950,-2098.39,0.00015198,2]
[352928330,1739439037960,-2084.23337,0.00015198,2]
[352928331,1739439037970,-3998.03,0.00015198,2]
[352928332,1739439037980,-1157.79,0.00015198,2]
[352928333,1739439037990,-2623.16,0.00015198,2]
[352928334,1739439038001,-500.0,0.00015198,2]
[352928335,1739439038010,-1638.45,0.00015198,2]
[352928336,1739439038020,-500.0,0.00015198,2]
[352928337,1739439038030,-2695.83,0.00015198,2]
[352928338,1739439038040,-3418.13,0.00015198,2]